bitfinex-derivatives/quotes_BTCF0:USTF0_20251108
["timestamp","ask_amount","ask_price","bid_price","bid_amount"]
[1762583440292,0.00314631,102400.0,102390.0,0.62752116]
[1762583441293,0.00514631,102400.0,102390.0,0.62752116]
[1762583445594,0.00514631,102400.0,102390.0,0.87168116]
[1762583445789,0.00514631,102400.0,102390.0,0.62752116]
[1762583445988,0.00514631,102400.0,102390.0,0.87168116]
[1762583446188,0.00514631,102400.0,102390.0,0.62752116]
[1762583446394,0.00514631,102400.0,102390.0,0.87168116]
[1762583447797,0.00514631,102400.0,102390.0,0.62752116]
[1762583448094,0.03499647,102410.0,102400.0,0.1544]
[1762583448288,0.03499647,102410.0,102400.0,0.62723166]
[1762583449298,0.03899647,102410.0,102400.0,0.62723166]
[1762583449795,0.08356647,102410.0,102400.0,0.52952166]
[1762583449993,0.04857,102410.0,102400.0,0.52952166]
[1762583450593,0.05157,102410.0,102400.0,0.52952166]
[1762583450797,0.08656647,102410.0,102400.0,0.52952166]
[1762583451095,0.05157,102410.0,102400.0,0.52952166]
[1762583451599,0.05157,102410.0,102400.0,0.62723166]
[1762583454093,0.45809994,102420.0,102410.0,0.1515904]
[1762583454094,0.05264389,102420.0,102410.0,0.1515904]
[1762583454300,0.00014631,102420.0,102410.0,0.62442206]
[1762583454892,0.02149631,102420.0,102410.0,0.62442206]
[1762583455197,0.02349631,102420.0,102410.0,0.62442206]
[1762583455792,0.04671631,102420.0,102410.0,0.52672166]
[1762583455992,0.06367631,102420.0,102410.0,0.52672166]
[1762583456388,0.06367631,102420.0,102410.0,0.49863937]
[1762583456792,0.04971631,102420.0,102410.0,0.49863937]
[1762583456988,0.02649631,102420.0,102410.0,0.59633977]
[1762583457199,0.00514631,102420.0,102410.0,0.68028914]
[1762583457395,0.02783631,102420.0,102410.0,0.68028914]
[1762583457600,0.04887631,102420.0,102410.0,0.68028914]
[1762583458900,0.06627758,102450.0,102430.0,0.1488013]
[1762583459107,0.05751,102450.0,102440.0,0.21120874]
[1762583459395,0.04373,102450.0,102440.0,0.68254054]
[1762583460000,0.04873,102450.0,102440.0,0.68254054]
[1762583461303,0.02769,102450.0,102440.0,0.68254054]
[1762583461510,0.02269,102450.0,102440.0,0.68254054]
[1762583461700,0.02369,102450.0,102440.0,0.68254054]
[1762583462600,0.001,102450.0,102440.0,0.5146418]
[1762583462801,0.001,102450.0,102440.0,0.68254054]
[1762583462998,0.04473,102450.0,102440.0,0.68254054]
[1762583463308,0.02369,102450.0,102440.0,0.68254054]
[1762583463601,0.04473,102450.0,102440.0,0.68254054]
[1762583463903,0.02369,102450.0,102440.0,0.68254054]
[1762583464702,0.02369,102450.0,102440.0,0.58486874]
[1762583464903,0.04473,102450.0,102440.0,0.58486874]
[1762583465602,0.001,102450.0,102440.0,0.68254054]
[1762583466106,0.04473,102450.0,102440.0,0.58486874]
[1762583468598,0.04473,102450.0,102440.0,0.68254054]
[1762583469011,0.02369,102450.0,102440.0,0.68254054]
[1762583470709,0.001,102450.0,102440.0,0.76648991]
[1762583472407,0.001,102450.0,102440.0,1.01052991]
[1762583472609,0.001,102450.0,102440.0,0.76648991]
[1762583473906,0.001,102450.0,102440.0,0.66881811]
[1762583474096,0.04473,102450.0,102440.0,0.66881811]
[1762583474299,0.04473,102450.0,102440.0,0.58486874]
[1762583474810,0.02369,102450.0,102440.0,0.58486874]
[1762583475808,0.02369,102450.0,102440.0,0.6640726]
[1762583477301,0.36094631,102460.0,102450.0,0.02159]
[1762583477507,0.02283631,102460.0,102450.0,0.58106874]
[1762583477712,0.04387631,102460.0,102450.0,0.58106874]
[1762583478211,0.05672631,102460.0,102450.0,0.58106874]
[1762583478404,0.05772631,102460.0,102450.0,0.12725937]
[1762583479608,0.05972631,102460.0,102450.0,0.12725937]
[1762583482814,0.05772631,102460.0,102450.0,0.12925937]
[1762583483009,0.05672631,102460.0,102450.0,0.12925937]
[1762583483214,0.05672631,102460.0,102450.0,0.13225937]
[1762583483614,0.41752631,102460.0,102450.0,0.13225937]
[1762583484212,0.45246684,102460.0,102450.0,0.13225937]
[1762583484713,0.45246684,102460.0,102450.0,0.13125937]
[1762583485616,0.45246684,102460.0,102450.0,0.12925937]
[1762583485808,0.45246684,102460.0,102450.0,0.13025937]
[1762583487204,0.50496442,102460.0,102450.0,0.13025937]
[1762583488213,0.47002389,102460.0,102450.0,0.13025937]
[1762583488914,0.47002389,102460.0,102450.0,0.04631]
[1762583489111,0.47002389,102460.0,102450.0,0.13025937]
[1762583491715,0.55397326,102460.0,102450.0,0.003]
[1762583491918,0.48759638,102460.0,102450.0,0.003]
[1762583493013,0.48759638,102460.0,102450.0,0.002]
[1762583493213,0.48759638,102460.0,102440.0,0.08394937]
[1762583493511,0.46996846,102450.0,102440.0,0.12920937]
[1762583493713,0.46996846,102450.0,102440.0,0.04526]
[1762583493908,0.46996846,102450.0,102440.0,0.10727937]
[1762583494117,0.05663,102440.0,102430.0,0.49015568]
[1762583494316,0.09165361,102440.0,102430.0,0.49015568]
[1762583494915,0.46996846,102440.0,102430.0,0.00014631]
[1762583495114,0.41743,102440.0,102430.0,0.00014631]
[1762583495418,0.46996138,102440.0,102430.0,0.00014631]
[1762583495615,0.46996138,102440.0,102430.0,0.00114631]
[1762583496421,0.46996138,102440.0,102430.0,0.00014631]
[1762583496625,0.46996138,102440.0,102430.0,0.00114631]
[1762583497420,0.46996138,102440.0,102430.0,0.08509568]
[1762583498225,0.46996138,102440.0,102430.0,0.00114631]
[1762583498524,0.55391075,102440.0,102430.0,0.00114631]
[1762583499226,0.05663,102420.0,102410.0,0.12920937]
[1762583500727,0.05663,102420.0,102410.0,0.13220937]
[1762583501120,0.05663,102420.0,102410.0,0.13420937]
[1762583502028,0.45239946,102420.0,102410.0,0.005]
[1762583502218,0.50485366,102420.0,102410.0,0.005]
[1762583502618,0.45239946,102420.0,102410.0,0.005]
[1762583503730,0.53634883,102420.0,102410.0,0.005]
[1762583503915,0.45239946,102420.0,102410.0,0.005]
[1762583504223,0.50485366,102420.0,102410.0,0.005]
[1762583505410,0.45239946,102420.0,102410.0,0.005]
[1762583511533,0.45239946,102420.0,102410.0,0.0026563]
[1762583511724,0.45239946,102420.0,102410.0,1e-07]
[1762583513025,0.50485366,102420.0,102410.0,1e-07]
[1762583513229,0.50485366,102420.0,102400.0,0.54130311]
[1762583513230,0.05537,102410.0,102400.0,0.54130311]
[1762583513420,0.41617,102410.0,102400.0,0.54130311]
[1762583513626,0.53508883,102410.0,102400.0,0.53553981]
[1762583514232,0.45113946,102410.0,102400.0,0.53553981]
[1762583514426,0.45113946,102410.0,102400.0,0.54153981]
[1762583514633,0.05537,102380.0,102370.0,0.41635887]
[1762583514837,0.05537,102380.0,102370.0,0.50030824]
[1762583515129,0.06534827,102380.0,102370.0,0.50030824]
[1762583516232,0.05537,102380.0,102370.0,0.24424674]
[1762583516732,0.05537,102380.0,102370.0,0.25024674]
[1762583517125,0.05537,102380.0,102370.0,0.16629737]
[1762583517325,0.04267,102380.0,102370.0,0.25024674]
[1762583518333,0.04267,102380.0,102370.0,0.2783136]
[1762583519534,0.04267,102380.0,102370.0,0.6391136]
[1762583520032,0.04267,102380.0,102370.0,1.2391136]
[1762583521035,0.04267,102380.0,102370.0,0.7805751]
[1762583521547,0.04267,102380.0,102370.0,1.1413751]
[1762583521739,0.04267,102380.0,102370.0,0.7805751]
[1762583522232,0.04267,102380.0,102370.0,0.8783135]
[1762583522734,0.04267,102380.0,102370.0,1.2391135]
[1762583535234,0.0350651,102390.0,102380.0,0.147779]
[1762583535439,0.00014631,102390.0,102380.0,0.62059523]
[1762583536439,0.00014631,102390.0,102380.0,0.62559523]
[1762583536642,0.00014631,102390.0,102380.0,0.62959523]
[1762583538934,0.00014631,102390.0,102380.0,0.517579]
[1762583539240,0.00014631,102390.0,102380.0,0.62959523]
[1762583540441,0.00014631,102390.0,102380.0,0.65586467]
[1762583540626,0.03491879,102400.0,102390.0,0.1543594]
[1762583540828,0.0458,102400.0,102390.0,0.55572567]
[1762583541040,0.05868,102400.0,102390.0,0.55572567]
[1762583541736,0.05868,102400.0,102390.0,0.55872567]
[1762583542337,0.0458,102400.0,102390.0,0.65944507]
[1762583542542,0.09049907,102410.0,102400.0,0.05664]
[1762583542841,0.05558028,102410.0,102400.0,0.26636613]
[1762583543944,0.05558028,102410.0,102400.0,0.26836613]
[1762583544342,0.10979354,102410.0,102400.0,0.26836613]
[1762583544537,0.10979354,102410.0,102400.0,0.63116613]
[1762583544538,0.08726354,102410.0,102400.0,0.63116613]
[1762583544737,0.03491879,102410.0,102400.0,0.63116613]
[1762583545644,0.13320985,102420.0,102410.0,0.05664]
[1762583545837,0.14324489,102420.0,102410.0,0.05664]
[1762583547045,0.1083261,102420.0,102410.0,0.05664]
[1762583547246,0.14335522,102420.0,102410.0,0.16965623]
[1762583547638,0.1083261,102420.0,102410.0,0.16965623]
[1762583547839,0.1083261,102420.0,102410.0,0.17065623]
[1762583548240,0.46557975,102420.0,102410.0,0.0459]
[1762583550856,0.46557975,102420.0,102410.0,0.05984]
[1762583551146,0.05598135,102420.0,102410.0,0.1575404]
[1762583552847,0.03517471,102420.0,102410.0,0.63035663]
[1762583553152,0.00014631,102420.0,102410.0,0.63035663]
[1762583558247,0.00014631,102420.0,102410.0,0.65662607]
[1762583559250,0.4532384,102450.0,102440.0,0.04502]
[1762583559454,0.4532384,102450.0,102440.0,0.17097623]
[1762583560247,0.4532384,102450.0,102440.0,0.05896]
[1762583560449,0.4552384,102450.0,102440.0,0.05896]
[1762583560648,0.45228259,102450.0,102440.0,0.05896]
[1762583561561,0.45528259,102450.0,102440.0,0.05896]
[1762583561854,0.45528259,102450.0,102440.0,0.1566317]
[1762583562158,0.46905259,102450.0,102440.0,0.05896]
[1762583562357,0.46405259,102450.0,102440.0,0.05896]
[1762583562556,0.46405259,102450.0,102440.0,0.05996]
[1762583563152,0.46405259,102450.0,102440.0,0.05896]
[1762583564556,0.46505259,102450.0,102440.0,0.05896]
[1762583566551,0.10425259,102450.0,102440.0,0.05896]
[1762583567357,0.46505259,102450.0,102440.0,0.05896]
[1762583568148,0.46505259,102450.0,102440.0,0.04502]
[1762583568348,0.51739734,102450.0,102440.0,0.04502]
[1762583574457,0.05407,102440.0,102430.0,0.17033254]
[1762583574763,0.05407,102440.0,102430.0,0.26801374]
[1762583575263,0.0890984,102440.0,102430.0,0.26801374]
[1762583575562,0.0890984,102440.0,102430.0,0.26901374]
[1762583575763,0.0771784,102440.0,102430.0,0.26901374]
[1762583578061,0.0771784,102440.0,102430.0,0.62981374]
[1762583580366,0.0771784,102440.0,102430.0,0.60171731]
[1762583580661,0.0350284,102440.0,102430.0,0.68563711]
[1762583583569,0.08737315,102450.0,102440.0,0.0976716]
[1762583583762,0.08737315,102450.0,102440.0,0.6263112]
[1762583584856,0.0360284,102450.0,102440.0,0.6263112]
[1762583585052,0.08837315,102450.0,102440.0,0.6263112]
[1762583586569,0.08837315,102450.0,102440.0,0.6273112]
[1762583586769,0.08737315,102450.0,102440.0,0.6273112]
[1762583587471,0.08737315,102460.0,102450.0,0.0976622]
[1762583587671,0.08737315,102460.0,102450.0,0.181582]
[1762583588962,0.0350284,102470.0,102460.0,0.0976526]
[1762583589160,0.08737315,102480.0,102460.0,0.6262922]
[1762583589365,0.08737315,102480.0,102470.0,0.0839198]
[1762583590368,0.0360284,102480.0,102470.0,0.0839198]
[1762583590570,0.0390284,102480.0,102470.0,0.0839198]
[1762583591169,0.0400284,102480.0,102470.0,0.0839198]
[1762583591470,0.4008284,102480.0,102460.0,0.0839198]
[1762583592568,0.3998284,102480.0,102460.0,0.0839198]
[1762583592867,0.3608,102470.0,102450.0,0.36094631]
[1762583593066,0.3958284,102470.0,102460.0,0.0839198]
[1762583594073,0.3968284,102470.0,102460.0,0.0839198]
[1762583594466,0.3968284,102470.0,102450.0,0.08406611]
[1762583594661,0.44917315,102470.0,102450.0,0.08406611]
[1762583594865,0.45017315,102470.0,102450.0,0.08406611]
[1762583595876,0.45017315,102470.0,102460.0,0.0839198]
[1762583596070,0.44817315,102470.0,102460.0,0.0839198]
[1762583596270,0.44917315,102470.0,102460.0,0.0839198]
[1762583597162,0.3958284,102470.0,102460.0,0.0839198]
[1762583597369,0.3988284,102470.0,102460.0,0.0839198]
[1762583597866,0.3988284,102470.0,102460.0,0.1815725]
[1762583598068,0.3988284,102470.0,102460.0,0.0839198]
[1762583598268,0.3988284,102470.0,102460.0,0.2654923]
[1762583598775,0.3638,102470.0,102460.0,0.2654923]
[1762583598974,0.3638,102470.0,102460.0,0.1815725]
[1762583599178,0.001,102470.0,102460.0,0.2654923]
[1762583599871,0.001,102470.0,102460.0,0.1815725]
[1762583600381,0.001,102470.0,102460.0,0.0839198]
[1762583600766,0.001,102470.0,102460.0,0.1815725]
[1762583600980,0.001,102470.0,102460.0,0.0839198]
[1762583601374,0.3618,102470.0,102460.0,0.0839198]
[1762583601867,0.0360284,102470.0,102460.0,0.2654923]
[1762583602071,0.0360284,102470.0,102460.0,0.6262923]
[1762583602072,0.001,102470.0,102460.0,0.6262923]
[1762583602268,0.001,102470.0,102460.0,0.5286396]
[1762583602572,0.0360284,102470.0,102460.0,0.1678396]
[1762583602877,0.0350284,102470.0,102460.0,0.2664923]
[1762583603276,0.0360284,102470.0,102460.0,0.2664923]
[1762583603467,0.0360284,102470.0,102460.0,0.2654923]
[1762583604472,0.0360284,102470.0,102460.0,0.1678396]
[1762583604980,0.0360284,102470.0,102460.0,0.2654923]
[1762583605181,0.0350284,102470.0,102460.0,0.2654923]
[1762583605379,0.0350284,102470.0,102460.0,0.1688396]
[1762583605881,0.0360284,102470.0,102460.0,0.1688396]
[1762583606182,0.0360284,102470.0,102460.0,0.1678396]
[1762583606481,0.0360284,102470.0,102460.0,0.0839198]
[1762583606682,0.3968284,102470.0,102460.0,0.0839198]
[1762583609282,0.44917315,102470.0,102460.0,0.0839198]
[1762583609881,0.44917315,102470.0,102460.0,0.1815725]
[1762583610274,0.3968284,102470.0,102460.0,0.1815725]
[1762583610476,0.44917315,102470.0,102460.0,0.0839198]
[1762583610871,0.46285315,102470.0,102460.0,0.0839198]
[1762583612087,0.4105084,102470.0,102460.0,0.0839198]
[1762583612286,0.46285315,102470.0,102460.0,0.0839198]
[1762583614890,0.42782475,102470.0,102460.0,0.0839198]
[1762583618995,0.01229,102460.0,102450.0,0.08406611]
[1762583619181,0.04740341,102460.0,102450.0,0.08406611]
[1762583619382,0.42576011,102460.0,102450.0,0.08406611]
[1762583620892,0.42576011,102460.0,102450.0,0.08506611]
[1762583623701,0.42576011,102460.0,102450.0,0.18272831]
[1762583624095,0.42576011,102460.0,102450.0,0.08506611]
[1762583624491,0.42576011,102460.0,102450.0,0.08406611]
[1762583625597,0.42676011,102460.0,102450.0,0.08406611]
[1762583626396,0.06596011,102460.0,102450.0,0.08406611]
[1762583626601,0.42676011,102460.0,102450.0,0.08406611]
[1762583626985,0.51067991,102460.0,102450.0,0.00014631]
[1762583627287,0.51064669,102460.0,102450.0,0.00014631]
[1762583627798,0.42672689,102460.0,102450.0,0.00014631]
[1762583628195,0.00684,102440.0,102430.0,0.0839198]
[1762583628497,0.04191518,102440.0,102430.0,0.0839198]
[1762583629695,0.04191518,102440.0,102430.0,0.0859198]
[1762583629890,0.04191518,102440.0,102430.0,0.0879198]
[1762583630191,0.40271518,102440.0,102430.0,0.0879198]
[1762583630785,0.45532795,102440.0,102430.0,0.0859198]
[1762583631498,0.45532795,102440.0,102430.0,0.0839198]
[1762583631686,0.45632795,102440.0,102430.0,0.0839198]
[1762583631887,0.40371518,102440.0,102430.0,0.0839198]
[1762583633100,0.45632795,102440.0,102430.0,0.0839198]
[1762583633602,0.45632795,102440.0,102430.0,0.181601]
[1762583634295,0.39687518,102440.0,102430.0,0.195171]
[1762583634502,0.03607518,102440.0,102430.0,0.2790908]
[1762583634999,0.03607518,102440.0,102430.0,0.195171]
[1762583635598,0.03507518,102440.0,102430.0,0.0974898]
[1762583635900,0.03507518,102440.0,102430.0,0.0984898]
[1762583636095,0.04769518,102440.0,102430.0,0.0984898]
[1762583636901,0.04769518,102440.0,102430.0,0.0974898]
[1762583637898,0.04769518,102440.0,102430.0,0.01357]
[1762583638088,0.04869518,102440.0,102430.0,0.0974898]
[1762583640392,0.04869518,102440.0,102430.0,0.1254691]
[1762583641499,0.03607518,102440.0,102430.0,0.1254691]
[1762583642098,0.03607518,102440.0,102430.0,0.2231504]
[1762583642504,0.04869518,102440.0,102430.0,0.1254691]
[1762583642695,0.01262,102430.0,102420.0,0.12544541]
[1762583643003,0.37342,102430.0,102420.0,0.12544541]
[1762583643903,0.37342,102430.0,102420.0,0.12644541]
[1762583644896,0.37342,102430.0,102420.0,0.00114631]
[1762583645807,0.01262,102430.0,102420.0,0.11257711]
[1762583645999,0.40849518,102440.0,102420.0,0.12678541]
[1762583646398,0.40849518,102440.0,102420.0,0.22447571]
[1762583646604,0.40849518,102440.0,102420.0,0.58527571]
[1762583647908,0.40849518,102440.0,102420.0,0.48758541]
[1762583648308,0.46110795,102440.0,102420.0,0.58527591]
[1762583648511,0.40849518,102440.0,102420.0,0.58527591]
[1762583650297,0.46110795,102440.0,102420.0,0.58527591]
[1762583651208,0.46110795,102440.0,102420.0,0.48758541]
[1762583652405,0.03507518,102430.0,102420.0,0.48758541]
[1762583654708,0.03507518,102430.0,102420.0,0.58527621]
[1762583657311,0.03507518,102430.0,102420.0,0.6115273]
[1762583657707,0.03507518,102430.0,102420.0,0.5138365]
[1762583658513,0.03507518,102430.0,102420.0,0.6115274]
[1762583658708,0.03507518,102430.0,102420.0,0.5138365]
[1762583659710,0.03507518,102430.0,102420.0,0.48758541]
[1762583659901,0.08768795,102430.0,102420.0,0.48758541]
[1762583660303,0.08768795,102430.0,102420.0,0.37568631]
[1762583660612,0.08768795,102430.0,102420.0,0.12678541]
[1762583661918,0.14334795,102430.0,102420.0,0.17030541]
[1762583662410,0.13072795,102430.0,102420.0,0.17030541]
[1762583664121,0.13072795,102430.0,102420.0,0.26799631]
[1762583665314,0.13072795,102430.0,102420.0,0.62879631]
[1762583667616,0.13072795,102430.0,102420.0,0.53110541]
[1762583667918,0.13072795,102430.0,102420.0,0.17030541]
[1762583668719,0.13072795,102430.0,102420.0,0.02227631]
[1762583668720,0.14438795,102430.0,102420.0,0.02227631]
[1762583669020,0.14438795,102430.0,102420.0,0.00114631]
[1762583669021,0.48757007,102430.0,102420.0,0.00114631]
[1762583669819,0.48757007,102430.0,102420.0,0.02295631]
[1762583671629,0.48757007,102430.0,102420.0,0.04482631]
[1762583672114,0.4175,102430.0,102420.0,0.04482631]
[1762583672316,0.4701481,102430.0,102420.0,0.04482631]
[1762583672519,0.4175,102430.0,102420.0,0.04482631]
[1762583673120,0.4701476,102430.0,102420.0,0.04482631]
[1762583674115,0.1093476,102430.0,102420.0,0.04482631]
[1762583674315,0.4701476,102430.0,102420.0,0.04482631]
[1762583674616,0.1093476,102430.0,102420.0,0.04482631]
[1762583674921,0.4701476,102430.0,102420.0,0.04482631]
[1762583675424,0.4701476,102430.0,102420.0,0.00114631]
[1762583675621,0.48757007,102430.0,102420.0,0.00114631]
[1762583680127,0.48757007,102430.0,102420.0,0.02295631]
[1762583682921,0.48757007,102430.0,102420.0,0.04518631]
[1762583683123,0.48757007,102430.0,102420.0,0.00114631]
[1762583685922,0.48757007,102430.0,102420.0,0.02375631]
[1762583686122,0.48757007,102430.0,102420.0,0.04598631]
[1762583686428,0.48757007,102430.0,102420.0,0.00114631]
[1762583686725,0.48757007,102430.0,102420.0,0.02375631]
[1762583688220,0.4175,102430.0,102420.0,0.02375631]
[1762583688421,0.48757007,102430.0,102420.0,0.02375631]
[1762583688615,0.48757007,102430.0,102420.0,0.04613631]
[1762583690529,0.48757007,102430.0,102420.0,0.00114631]
[1762583690827,0.48757007,102430.0,102420.0,0.02319631]
[1762583691028,0.48757007,102430.0,102420.0,0.00114631]
[1762583691330,0.48757007,102430.0,102420.0,0.04557631]
[1762583692129,0.48757007,102430.0,102420.0,0.00114631]
[1762583701237,0.4175,102430.0,102420.0,0.00114631]
[1762583702134,0.5293991,102430.0,102420.0,0.00114631]
[1762583702335,0.50148183,102430.0,102420.0,0.00114631]
[1762583702535,0.05525,102410.0,102400.0,0.12788183]
[1762583702846,0.10793318,102410.0,102400.0,0.21186366]
[1762583703228,0.05733,102400.0,102390.0,0.0439]
[1762583703431,0.50591908,102400.0,102390.0,0.12788183]
[1762583703637,0.14511908,102400.0,102390.0,0.12788183]
[1762583703933,0.50591908,102400.0,102390.0,0.12788183]
[1762583704132,0.50291908,102400.0,102390.0,0.12788183]
[1762583704738,0.49991908,102400.0,102390.0,0.13188183]
[1762583705732,0.49991908,102400.0,102390.0,0.13588183]
[1762583706839,0.49991908,102400.0,102390.0,0.24661133]
[1762583707032,0.13911908,102400.0,102390.0,0.14889183]
[1762583707236,0.08644563,102400.0,102390.0,0.14889183]
[1762583707436,0.08644563,102400.0,102390.0,0.13588183]
[1762583707636,0.5661819,102400.0,102390.0,0.008]
[1762583707838,0.49611183,102400.0,102390.0,0.008]
[1762583708148,0.54874516,102400.0,102390.0,0.008]
[1762583711645,0.54874516,102400.0,102390.0,0.02937]
[1762583711843,0.54874516,102400.0,102390.0,0.13588183]
[1762583711844,0.46476333,102400.0,102390.0,0.13588183]
[1762583712047,0.46476333,102400.0,102390.0,0.14889183]
[1762583712748,0.46476333,102400.0,102390.0,0.11335183]
[1762583713148,0.54874516,102400.0,102390.0,0.008]
[1762583713649,0.54874516,102400.0,102390.0,0.13588183]
[1762583713650,0.46476333,102400.0,102390.0,0.13588183]
[1762583714749,0.49977819,102400.0,102390.0,0.13588183]
[1762583715048,0.49977927,102400.0,102390.0,0.13588183]
[1762583716047,0.49977927,102400.0,102390.0,0.0519]
[1762583716246,0.49977927,102400.0,102390.0,0.13588183]
[1762583716446,0.46476333,102400.0,102390.0,0.13588183]
[1762583716660,0.49977614,102400.0,102390.0,0.13588183]
[1762583717053,0.46476333,102400.0,102390.0,0.13588183]
[1762583717244,0.49977528,102400.0,102390.0,0.13588183]
[1762583718248,0.49977528,102400.0,102390.0,0.14889183]
[1762583719159,0.53574868,102410.0,102400.0,0.01301]
[1762583719453,0.52502868,102410.0,102400.0,0.05691]
[1762583720045,0.52502868,102410.0,102390.0,0.10499183]
[1762583720240,0.52502868,102410.0,102390.0,0.14489183]
[1762583720441,0.52502868,102410.0,102400.0,0.005]
[1762583721256,0.52502868,102410.0,102400.0,0.002]
[1762583723355,0.52502868,102410.0,102400.0,0.005]
[1762583724355,0.52502868,102410.0,102400.0,0.02637]
[1762583725044,0.52502868,102410.0,102400.0,0.06213]
[1762583725250,0.44104685,102410.0,102400.0,0.14611183]
[1762583725752,0.08024685,102410.0,102400.0,0.14611183]
[1762583726455,0.01017678,102410.0,102400.0,0.14611183]
[1762583728359,0.08024685,102410.0,102400.0,0.14611183]
[1762583728653,0.01017678,102410.0,102400.0,0.14611183]
[1762583730658,0.46187765,102430.0,102410.0,0.05795]
[1762583731254,0.46187765,102430.0,102410.0,0.3608]
[1762583731450,0.37446,102430.0,102410.0,0.3608]
[1762583731651,0.49699102,102430.0,102410.0,0.36094631]
[1762583731850,0.49699102,102430.0,102410.0,0.36194631]
[1762583732052,0.49699102,102430.0,102410.0,0.36294631]
[1762583732260,0.5066543,102430.0,102410.0,0.36294631]
[1762583732954,0.1458543,102430.0,102410.0,0.36294631]
[1762583733357,0.5066543,102430.0,102410.0,0.36294631]
[1762583734059,0.1458543,102430.0,102410.0,0.36294631]
[1762583734762,0.5066543,102430.0,102410.0,0.36294631]
[1762583735459,0.1458543,102430.0,102410.0,0.36294631]
[1762583735659,0.14635909,102430.0,102410.0,0.42089631]
[1762583738360,0.02346959,102430.0,102410.0,0.42089631]
[1762583738752,0.02346959,102430.0,102410.0,0.39857631]
[1762583739056,0.02346959,102430.0,102410.0,0.39849631]
[1762583739361,0.02346959,102430.0,102420.0,0.3608]
[1762583739562,0.02346959,102430.0,102420.0,0.41875]
[1762583739563,0.00980959,102430.0,102420.0,0.41875]
[1762583739757,0.34672959,102430.0,102420.0,0.41875]
[1762583739964,0.00980959,102430.0,102420.0,0.41875]
[1762583740749,0.09764923,102430.0,102420.0,0.41875]
[1762583741262,0.09864923,102430.0,102420.0,0.41875]
[1762583742060,0.14291923,102430.0,102420.0,0.40552]
[1762583742259,0.29727923,102430.0,102420.0,0.40552]
[1762583746861,0.29727923,102430.0,102420.0,0.45268]
[1762583747067,0.25300923,102430.0,102420.0,0.45268]
[1762583750260,0.15847185,102430.0,102420.0,0.45268]
[1762583750459,0.08101185,102430.0,102420.0,0.45268]
[1762583750658,0.01080959,102430.0,102420.0,0.45268]
[1762583751967,0.06345536,102430.0,102420.0,0.45268]
[1762583752767,0.01080959,102430.0,102420.0,0.45268]
[1762583753868,0.08101185,102430.0,102420.0,0.45268]
[1762583754260,0.01080959,102430.0,102420.0,0.45268]
[1762583755262,0.06341932,102430.0,102420.0,0.45268]
[1762583755957,0.0888354,102430.0,102420.0,0.45268]
[1762583756158,0.1004631,102430.0,102420.0,0.45268]
[1762583756866,0.0888354,102430.0,102420.0,0.45268]
[1762583757066,0.0888354,102430.0,102420.0,0.5503709]
[1762583757670,0.03622183,102430.0,102420.0,0.5503709]
[1762583758770,0.0888354,102430.0,102420.0,0.45268]
[1762583760469,0.0888354,102430.0,102420.0,0.5503709]
[1762583760670,1.83e-06,102430.0,102420.0,0.7944509]
[1762583760868,0.0637684,102440.0,102430.0,0.18714]
[1762583761169,0.2579984,102440.0,102430.0,0.54794]
[1762583761471,0.2146284,102440.0,102430.0,0.54794]
[1762583762167,0.2156284,102440.0,102430.0,0.54794]
[1762583762465,0.2176284,102440.0,102430.0,0.54794]
[1762583763569,0.08783964,102460.0,102450.0,0.18714]
[1762583764656,0.08783964,102460.0,102450.0,0.54794]
[1762583765061,0.09483964,102460.0,102450.0,0.54794]
[1762583765366,0.10596177,102460.0,102450.0,0.54794]
[1762583767570,0.01812213,102460.0,102450.0,0.54794]
[1762583768668,0.01112213,102460.0,102450.0,0.54794]
[1762583768872,0.1461143,102480.0,102470.0,0.18714]
[1762583769071,0.0232,102480.0,102470.0,0.54794]
[1762583770465,0.0252,102480.0,102470.0,0.54794]
[1762583771175,0.11303964,102480.0,102470.0,0.54794]
[1762583771773,0.11603964,102480.0,102470.0,0.54794]
[1762583772170,0.1275359,102480.0,102470.0,0.54794]
[1762583772369,0.03969626,102480.0,102470.0,0.54794]
[1762583773574,0.10972619,102480.0,102470.0,0.54794]
[1762583775667,0.03969626,102480.0,102470.0,0.54794]
[1762583776076,0.10971703,102480.0,102470.0,0.54794]
[1762583777078,0.03969626,102480.0,102470.0,0.54794]
[1762583777879,0.1097148,102480.0,102470.0,0.54794]
[1762583778269,0.03969626,102480.0,102470.0,0.54794]
[1762583778668,0.10972111,102480.0,102470.0,0.54794]
[1762583778875,0.88391531,102510.0,102480.0,0.18714]
[1762583779076,0.895247,102510.0,102480.0,0.54808631]
[1762583779976,0.72041169,102510.0,102480.0,0.54808631]
[1762583780178,0.72341169,102510.0,102480.0,0.54808631]
[1762583780771,0.898247,102510.0,102480.0,0.54808631]
[1762583781173,0.901247,102510.0,102480.0,0.54808631]
[1762583782376,0.72641169,102510.0,102480.0,0.54808631]
[1762583783370,0.72641169,102510.0,102490.0,0.18714]
[1762583784391,0.72341169,102510.0,102490.0,0.18714]
[1762583784689,0.72941169,102510.0,102490.0,0.18714]
[1762583787288,0.71781169,102510.0,102490.0,0.18714]
[1762583787489,0.71781169,102510.0,102500.0,0.26215]
[1762583788086,0.840484,102510.0,102500.0,0.26215]
[1762583788590,0.835484,102510.0,102500.0,0.26215]
[1762583788788,0.841484,102510.0,102500.0,0.26215]
[1762583789278,0.480684,102510.0,102500.0,0.26215]
[1762583789483,0.476684,102510.0,102500.0,0.26215]
[1762583789684,0.35901169,102510.0,102500.0,0.26215]
[1762583790089,0.02233169,102510.0,102500.0,0.26215]
[1762583790291,0.14503018,102510.0,102500.0,0.26215]
[1762583790493,0.14503018,102510.0,102500.0,0.62295]
[1762583790692,0.10997953,102510.0,102500.0,0.62295]
[1762583791793,0.10397953,102510.0,102500.0,0.62295]
[1762583792093,0.10897953,102510.0,102500.0,0.62295]
[1762583792994,0.10397953,102510.0,102500.0,0.62295]
[1762583793191,0.10797953,102510.0,102500.0,0.62295]
[1762583793392,0.02033169,102510.0,102500.0,0.62295]
[1762583793693,0.10798477,102510.0,102500.0,0.62295]
[1762583795299,0.02033169,102510.0,102500.0,0.62295]
[1762583795497,0.17809631,102510.0,102500.0,0.62295]
[1762583795692,0.09044323,102510.0,102500.0,0.62295]
[1762583796499,0.08644323,102510.0,102500.0,0.62295]
[1762583796699,0.08844323,102510.0,102500.0,0.62295]
[1762583796997,0.08644323,102510.0,102500.0,0.62295]
[1762583797399,0.08765308,102520.0,102510.0,0.26215]
[1762583797697,0.08765308,102540.0,102530.0,0.26215]
[1762583798493,0.08765308,102540.0,102530.0,0.62295]
[1762583798494,0.01113396,102540.0,102530.0,0.62295]
[1762583798693,0.78505308,102550.0,102540.0,0.26215]
[1762583799304,0.6974,102550.0,102540.0,0.24628149]
[1762583799598,0.82009849,102550.0,102540.0,0.24628149]